fUST/lending_fUST_20250811
["ID","MTS","AMOUNT","RATE_DAILY","PERIOD"]
[378584612,1754917851351,-460.0,0.00019452,2]
[378584615,1754917851360,-497.31,0.00019452,2]
[378584617,1754917851370,-460.0,0.00019452,2]
[378584619,1754917851379,-475.63745788,0.00019452,2]
[378584621,1754917851388,-460.0,0.00019452,2]
[378584623,1754917851398,-463.54142439,0.00019452,2]
[378584625,1754917851407,-460.0,0.00019452,2]
[378584627,1754917851416,-500.0,0.00019452,2]
[378584629,1754917851425,-610.92,0.00019452,2]
[378584631,1754917851436,-460.0,0.00019452,2]
[378584633,1754917851445,-460.0,0.00019452,2]
[378584635,1754917851455,-460.0,0.00019452,2]
[378584637,1754917851464,-460.0,0.00019452,2]
[378584639,1754917851473,-686.35,0.00019452,2]
[378584641,1754917851482,-460.0,0.00019452,2]
[378584643,1754917851492,-460.0,0.00019452,2]
[378584645,1754917851503,-460.0,0.00019452,2]
[378584647,1754917851514,-525.18,0.00019452,2]
[378584649,1754917851524,-460.0,0.00019452,2]
[378584651,1754917851533,-460.0,0.00019452,2]
[378584653,1754917851543,-460.0,0.00019452,2]
[378584655,1754917851552,-460.0,0.00019452,2]
[378584657,1754917851561,-460.0,0.00019452,2]
[378584659,1754917851570,-460.0,0.00019452,2]
[378584661,1754917851579,-460.0,0.00019452,2]
[378584663,1754917851591,-460.0,0.00019452,2]
[378584665,1754917851600,-460.0,0.00019452,2]
[378584667,1754917851610,-460.0,0.00019452,2]
[378584669,1754917851619,-460.0,0.00019452,2]
[378584671,1754917851629,-460.0,0.00019452,2]
[378584673,1754917851639,-460.0,0.00019452,2]
[378584675,1754917851649,-460.0,0.00019452,2]
[378584677,1754917851659,-460.0,0.00019452,2]
[378584679,1754917851668,-460.0,0.00019452,2]
[378584681,1754917851678,-512.72,0.00019452,2]
[378584683,1754917851693,-460.0,0.00019452,2]
[378584685,1754917851703,-460.0,0.00019452,2]
[378584687,1754917851713,-403.27757068,0.00019452,2]
[378584689,1754917851722,-460.0,0.00019452,2]
[378584691,1754917851732,-638.08,0.00019452,2]
[378584693,1754917851741,-460.0,0.00019452,2]
[378584695,1754917851751,-496.45,0.00019452,2]
[378584697,1754917851761,-460.0,0.00019452,2]
[378584699,1754917851770,-460.0,0.00019452,2]
[378584701,1754917851780,-460.0,0.00019452,2]
[378584703,1754917851789,-460.0,0.00019452,2]
[378584706,1754917851799,-460.0,0.00019452,2]
[378584708,1754917851809,-460.0,0.00019452,2]
[378584710,1754917851818,-460.0,0.00019452,2]
[378584712,1754917851828,-1972.13,0.00019452,2]
[378584714,1754917851837,-460.0,0.00019452,2]
[378584716,1754917851847,-460.0,0.00019452,2]
[378584718,1754917851856,-460.0,0.00019452,2]
[378584720,1754917851866,-460.0,0.00019452,2]
[378584722,1754917851875,-460.0,0.00019452,2]
[378584724,1754917851884,-460.0,0.00019452,2]
[378584726,1754917851897,-460.0,0.00019452,2]
[378584728,1754917851906,-880.16,0.00019452,2]
[378584730,1754917851915,-460.0,0.00019452,2]
[378584732,1754917851925,-361.08311554,0.00019452,2]
[378584734,1754917851939,-1610.1,0.00019452,2]
[378584736,1754917851948,-588.31,0.00019452,2]
[378584738,1754917851958,-298.9357942,0.00019452,2]
[378584740,1754917851967,-460.0,0.00019452,2]
[378584742,1754917851977,-460.0,0.00019452,2]
[378584744,1754917851986,-460.0,0.00019452,2]
[378584746,1754917851996,-460.0,0.00019452,2]
[378584748,1754917852006,-1372.52,0.00019452,2]
[378584750,1754917852015,-460.0,0.00019452,2]
[378584752,1754917852024,-460.0,0.00019452,2]
[378584754,1754917852033,-630.7,0.00019452,2]
[378584756,1754917852043,-460.0,0.00019452,2]
[378584758,1754917852053,-460.0,0.00019452,2]
[378584760,1754917852063,-460.0,0.00019452,2]
[378584762,1754917852073,-471.80996369,0.00019452,2]
[378584764,1754917852082,-460.0,0.00019452,2]
[378584766,1754917852091,-460.0,0.00019452,2]
[378584768,1754917852101,-460.0,0.00019452,2]
[378584770,1754917852110,-460.0,0.00019452,2]
[378584772,1754917852120,-460.0,0.00019452,2]
[378584774,1754917852129,-460.0,0.00019452,2]
[378584776,1754917852138,-631.31,0.00019452,2]
[378584778,1754917852147,-482.92145949,0.00019452,2]
[378584780,1754917852156,-460.0,0.00019452,2]
[378584782,1754917852166,-423.40433545,0.00019452,2]
[378584784,1754917852175,-460.0,0.00019452,2]
[378584786,1754917852186,-460.0,0.00019452,2]
[378584788,1754917852195,-916.34,0.00019452,2]
[378584790,1754917852205,-460.0,0.00019452,2]
[378584792,1754917852214,-460.0,0.00019452,2]
[378584794,1754917852223,-764.9,0.00019452,2]
[378584796,1754917852233,-460.0,0.00019452,2]
[378584798,1754917852242,-460.0,0.00019452,2]
[378584800,1754917852252,-467.5314501,0.00019452,2]
[378584802,1754917852261,-460.0,0.00019452,2]
[378584804,1754917852271,-1316.22,0.00019452,2]
[378584806,1754917852281,-912.2,0.00019452,2]
[378584808,1754917852291,-461.86386451,0.00019452,2]
[378584810,1754917852300,-460.0,0.00019452,2]
[378584812,1754917852310,-460.0,0.00019452,2]
[378584814,1754917852319,-460.0,0.00019452,2]
[378584816,1754917852328,-460.0,0.00019452,2]
[378584818,1754917852337,-460.0,0.00019452,2]
[378584820,1754917852347,-2503.29,0.00019452,2]
[378584822,1754917852356,-460.0,0.00019452,2]
[378584824,1754917852366,-164.93371486,0.00019452,2]
[378584826,1754917852375,-463.15122904,0.00019452,2]
[378584828,1754917852384,-460.0,0.00019452,2]
[378584830,1754917852394,-460.0,0.00019452,2]
[378584832,1754917852403,-460.0,0.00019452,2]
[378584834,1754917852413,-460.0,0.00019452,2]
[378584836,1754917852423,-460.0,0.00019452,2]
[378584838,1754917852434,-151.69258288,0.00019452,2]
[378584840,1754917852444,-460.0,0.00019452,2]
[378584842,1754917852453,-460.0,0.00019452,2]
[378584844,1754917852462,-460.0,0.00019452,2]
[378584846,1754917852472,-460.0,0.00019452,2]
[378584848,1754917852482,-460.0,0.00019452,2]
[378584850,1754917852491,-460.0,0.00019452,2]
[378584852,1754917852500,-460.0,0.00019452,2]
[378584854,1754917852510,-460.0,0.00019452,2]
[378584857,1754917852520,-460.0,0.00019452,2]
[378584859,1754917852530,-472.21973355,0.00019452,2]
[378584861,1754917852540,-460.0,0.00019452,2]
[378584863,1754917852550,-460.0,0.00019452,2]
[378584865,1754917852560,-460.0,0.00019452,2]
[378584867,1754917852570,-460.0,0.00019452,2]
[378584869,1754917852580,-460.0,0.00019452,2]
[378584871,1754917852590,-460.0,0.00019452,2]
[378584873,1754917852600,-460.0,0.00019452,2]
[378584875,1754917852610,-557.39775498,0.00019452,2]
[378584877,1754917852619,-460.0,0.00019452,2]
[378584879,1754917852628,-460.0,0.00019452,2]
[378584881,1754917852638,-460.0,0.00019452,2]
[378584883,1754917852659,-460.0,0.00019452,2]
[378584885,1754917852668,-460.0,0.00019452,2]
[378584887,1754917852678,-460.0,0.00019452,2]
[378584889,1754917852691,-468.37,0.00019452,2]
[378584891,1754917852700,-460.0,0.00019452,2]
[378584893,1754917852709,-460.0,0.00019452,2]
[378584895,1754917852718,-460.0,0.00019452,2]
[378584897,1754917852728,-570.86145266,0.00019452,2]
[378584899,1754917852737,-460.0,0.00019452,2]
[378584907,1754917852801,-460.0,0.00019452,2]
[378584909,1754917852811,-460.0,0.00019452,2]
[378584911,1754917852821,-789.64,0.00019452,2]
[378584913,1754917852831,-460.0,0.00019452,2]
[378584915,1754917852842,-460.0,0.00019452,2]
[378584917,1754917852852,-1380.02,0.00019452,2]
[378584919,1754917852862,-460.0,0.00019452,2]
[378584921,1754917852871,-460.0,0.00019452,2]
[378584923,1754917852882,-460.0,0.00019452,2]
[378584925,1754917852896,-460.0,0.00019452,2]
[378584927,1754917852905,-460.0,0.00019452,2]
[378584929,1754917852915,-460.0,0.00019452,2]
[378584931,1754917852924,-460.0,0.00019452,2]
[378584933,1754917852937,-460.0,0.00019452,2]
[378584935,1754917852947,-460.0,0.00019452,2]
[378584937,1754917852957,-460.0,0.00019452,2]
[378584939,1754917852966,-460.0,0.00019452,2]
[378584941,1754917852977,-460.0,0.00019452,2]
[378584943,1754917852987,-460.0,0.00019452,2]
[378584945,1754917852997,-460.0,0.00019452,2]
[378584947,1754917853007,-460.0,0.00019452,2]
[378584949,1754917853016,-5179.06,0.00019452,2]
[378584951,1754917853025,-460.0,0.00019452,2]
[378584953,1754917853036,-460.0,0.00019452,2]
[378584955,1754917853046,-1468.07,0.00019452,2]
[378584957,1754917853056,-460.0,0.00019452,2]
[378584959,1754917853066,-741.32,0.00019452,2]
[378584961,1754917853075,-1581.26,0.00019452,2]
[378584963,1754917853084,-460.0,0.00019452,2]
[378584965,1754917853093,-460.0,0.00019452,2]
[378584967,1754917853102,-1256.59,0.00019452,2]
[378584969,1754917853111,-460.0,0.00019452,2]
[378584971,1754917853121,-571.835359,0.00019452,2]
[378584972,1754917853130,-1834.79,0.00019452,2]
[378584973,1754917853139,-571.835359,0.00019452,2]
[378584974,1754917853148,-460.0,0.00019452,2]
[378584975,1754917853157,-1443.52,0.00019452,2]
[378584976,1754917853166,-593.15,0.00019452,2]
[378584977,1754917853175,-460.0,0.00019452,2]
[378584978,1754917853187,-460.0,0.00019452,2]
[378584979,1754917853196,-151.0,0.00019452,2]
[378584980,1754917853205,-460.0,0.00019452,2]
[378584981,1754917853214,-460.0,0.00019452,2]
[378584982,1754917853223,-460.0,0.00019452,2]
[378584983,1754917853232,-2037.15,0.00019452,2]
[378584984,1754917853241,-1133.25,0.00019452,2]
[378584985,1754917853250,-460.0,0.00019452,2]
[378584986,1754917853259,-283.51060805,0.00019452,2]
[378584987,1754917853268,-866.1,0.00019452,2]
[378584989,1754917853277,-460.0,0.00019452,2]
[378584991,1754917853286,-492.59804179,0.00019452,2]
[378584993,1754917853296,-460.0,0.00019452,2]
[378584995,1754917853305,-460.0,0.00019452,2]
[378584997,1754917853314,-661.27,0.00019452,2]
[378584999,1754917853323,-470.45145204,0.00019452,2]
[378585001,1754917853332,-460.0,0.00019452,2]
[378585003,1754917853341,-460.0,0.00019452,2]
[378585005,1754917853351,-467.75979829,0.00019452,2]
[378585007,1754917853360,-460.0,0.00019452,2]
[378585009,1754917853369,-460.0,0.00019452,2]
[378585011,1754917853378,-484.98536871,0.00019452,2]
[378585013,1754917853387,-597.69,0.00019452,2]
[378585015,1754917853396,-460.0,0.00019452,2]
[378585017,1754917853405,-460.0,0.00019452,2]
[378585019,1754917853414,-2905.35,0.00019452,2]
[378585021,1754917853423,-460.0,0.00019452,2]
[378585023,1754917853435,-1107.57,0.00019452,2]
[378585025,1754917853444,-460.0,0.00019452,2]
[378585027,1754917853454,-460.0,0.00019452,2]
[378585029,1754917853463,-303.90758399,0.00019452,2]
[378585031,1754917853472,-460.0,0.00019452,2]
[378585033,1754917853482,-460.0,0.00019452,2]
[378585035,1754917853491,-460.0,0.00019452,2]
[378585037,1754917853501,-460.0,0.00019452,2]
[378585039,1754917853510,-460.0,0.00019452,2]
[378585041,1754917853519,-460.0,0.00019452,2]
[378585042,1754917853528,-1149.51,0.00019452,2]
[378585044,1754917853537,-460.0,0.00019452,2]
[378585046,1754917853546,-460.0,0.00019452,2]
[378585048,1754917853555,-737.59,0.00019452,2]
[378585050,1754917853564,-460.0,0.00019452,2]
[378585052,1754917853573,-1132.76,0.00019452,2]
[378585054,1754917853582,-4452.22,0.00019452,2]
[378585056,1754917853591,-460.0,0.00019452,2]
[378585058,1754917853600,-460.0,0.00019452,2]
[378585060,1754917853609,-865.24,0.00019452,2]
[378585062,1754917853619,-460.0,0.00019452,2]
[378585064,1754917853628,-460.0,0.00019452,2]
[378585066,1754917853637,-862.22,0.00019452,2]
[378585068,1754917853646,-460.0,0.00019452,2]
[378585070,1754917853656,-536.01,0.00019452,2]
[378585072,1754917853665,-460.0,0.00019452,2]
[378585074,1754917853674,-460.0,0.00019452,2]
[378585076,1754917853685,-460.0,0.00019452,2]
[378585078,1754917853694,-460.0,0.00019452,2]
[378585080,1754917853703,-460.0,0.00019452,2]
[378585082,1754917853713,-460.0,0.00019452,2]
[378585084,1754917853722,-460.0,0.00019452,2]
[378585086,1754917853731,-460.0,0.00019452,2]
[378585088,1754917853740,-460.0,0.00019452,2]
[378585090,1754917853750,-460.0,0.00019452,2]
[378585092,1754917853759,-460.0,0.00019452,2]
[378585094,1754917853768,-737.54,0.00019452,2]
[378585096,1754917853777,-460.0,0.00019452,2]
[378585098,1754917853786,-460.0,0.00019452,2]
[378585100,1754917853796,-460.0,0.00019452,2]
[378585102,1754917853805,-952.4,0.00019452,2]
[378585104,1754917853814,-460.0,0.00019452,2]
[378585106,1754917853823,-460.0,0.00019452,2]
[378585108,1754917853832,-516.65,0.00019452,2]
[378585109,1754917853842,-460.0,0.00019452,2]
[378585111,1754917853851,-460.0,0.00019452,2]
[378585113,1754917853861,-3819.79,0.00019452,2]
[378585116,1754917853872,-460.0,0.00019452,2]
[378585118,1754917853882,-471.17,0.00019452,2]
[378585119,1754917853891,-460.0,0.00019452,2]
[378585121,1754917853904,-214.1422116,0.00019452,2]
[378585123,1754917853915,-460.0,0.00019452,2]
[378585125,1754917853924,-460.0,0.00019452,2]
[378585128,1754917853935,-1010.81,0.00019452,2]
[378585130,1754917853945,-460.0,0.00019452,2]
[378585132,1754917853954,-3493.15,0.00019452,2]
[378585134,1754917853964,-460.0,0.00019452,2]
[378585136,1754917853973,-460.0,0.00019452,2]
[378585137,1754917853983,-460.02790009,0.00019452,2]
[378585139,1754917853993,-460.0,0.00019452,2]
[378585142,1754917854002,-460.0,0.00019452,2]
[378585143,1754917854011,-792.1,0.00019452,2]
[378585145,1754917854021,-460.0,0.00019452,2]
[378585147,1754917854030,-703.44,0.00019452,2]
[378585149,1754917854039,-460.0,0.00019452,2]
[378585151,1754917854048,-460.0,0.00019452,2]
[378585153,1754917854058,-460.0,0.00019452,2]
[378585155,1754917854069,-556.81,0.00019452,2]
[378585157,1754917854078,-1298.9,0.00019452,2]
[378585159,1754917854087,-1287.16,0.00019452,2]
[378585161,1754917854097,-476.84959041,0.00019452,2]
[378585163,1754917854107,-460.0,0.00019452,2]
[378585165,1754917854116,-460.0,0.00019452,2]
[378585167,1754917854126,-722.84,0.00019452,2]
[378585169,1754917854135,-460.0,0.00019452,2]
[378585171,1754917854144,-460.0,0.00019452,2]
[378585173,1754917854154,-2152.29,0.00019452,2]
[378585175,1754917854163,-460.0,0.00019452,2]
[378585177,1754917854173,-1256.64,0.00019452,2]
[378585179,1754917854182,-151.0,0.00019452,2]
[378585181,1754917854191,-694.12,0.00019452,2]
[378585183,1754917854200,-460.0,0.00019452,2]
[378585185,1754917854209,-481.0030565,0.00019452,2]
[378585187,1754917854218,-460.0,0.00019452,2]
[378585189,1754917854227,-941.16,0.00019452,2]
[378585190,1754917854236,-460.0,0.00019452,2]
[378585192,1754917854246,-460.0,0.00019452,2]
[378585194,1754917854255,-460.0,0.00019452,2]
[378585196,1754917854264,-503.86,0.00019452,2]
[378585198,1754917854274,-460.0,0.00019452,2]
[378585200,1754917854283,-460.0,0.00019452,2]
[378585202,1754917854292,-460.0,0.00019452,2]
[378585204,1754917854302,-460.0,0.00019452,2]
[378585206,1754917854310,-528.29519573,0.00019452,2]
[378585208,1754917854319,-897.94,0.00019452,2]
[378585210,1754917854329,-701.05,0.00019452,2]
[378585212,1754917854338,-460.0,0.00019452,2]
[378585214,1754917854347,-460.0,0.00019452,2]
[378585216,1754917854357,-460.0,0.00019452,2]
[378585218,1754917854365,-460.0,0.00019452,2]
[378585220,1754917854375,-346.50092466,0.00019452,2]
[378585222,1754917854384,-460.0,0.00019452,2]
[378585224,1754917854393,-1007.84,0.00019452,2]
[378585226,1754917854402,-465.87003239,0.00019452,2]
[378585228,1754917854411,-460.0,0.00019452,2]
[378585230,1754917854421,-460.0,0.00019452,2]
[378585232,1754917854430,-460.0,0.00019452,2]
[378585234,1754917854441,-882.05,0.00019452,2]
[378585236,1754917854450,-494.56,0.00019452,2]
[378585238,1754917854459,-460.0,0.00019452,2]
[378585240,1754917854469,-460.0,0.00019452,2]
[378585242,1754917854478,-460.0,0.00019452,2]
[378585244,1754917854487,-460.0,0.00019452,2]
[378585246,1754917854497,-460.0,0.00019452,2]
[378585248,1754917854506,-1463.08,0.00019452,2]
[378585250,1754917854515,-460.0,0.00019452,2]
[378585252,1754917854525,-460.0,0.00019452,2]
[378585254,1754917854534,-460.0,0.00019452,2]
[378585256,1754917854544,-4926.55,0.00019452,2]
[378585258,1754917854553,-361.89782764,0.00019452,2]
[378585260,1754917854563,-460.0,0.00019452,2]
[378585262,1754917854572,-815.14,0.00019452,2]
[378585264,1754917854581,-460.0,0.00019452,2]
[378585266,1754917854593,-460.0,0.00019452,2]
[378585268,1754917854602,-464.1411074,0.00019452,2]
[378585270,1754917854611,-460.0,0.00019452,2]
[378585272,1754917854620,-460.0,0.00019452,2]
[378585274,1754917854629,-460.0,0.00019452,2]
[378585276,1754917854638,-558.18,0.00019452,2]
[378585278,1754917854648,-1141.02,0.00019452,2]
[378585280,1754917854657,-1140.11,0.00019452,2]
[378585282,1754917854666,-460.0,0.00019452,2]
[378585284,1754917854675,-1189.87,0.00019452,2]
[378585286,1754917854686,-460.0,0.00019452,2]
[378585288,1754917854695,-460.0,0.00019452,2]
[378585290,1754917854704,-460.0,0.00019452,2]
[378585292,1754917854713,-460.0,0.00019452,2]
[378585294,1754917854723,-922.64618398,0.00019466,2]
[378585296,1754917854732,-3686.8941512,0.00019466,2]
[378585298,1754917854741,-962.51164426,0.00019466,2]
[378585300,1754917854750,-4623.99224934,0.00019466,2]
[378585302,1754917854760,-8220.43066549,0.00019466,2]
[378585304,1754917854769,-706.93595274,0.00019466,2]
[378585305,1754917854778,-2827.74381098,0.00019466,2]
[378585307,1754917854788,-500.0,0.00019473,2]
[378585309,1754917854797,-500.0,0.00019473,2]
[378585311,1754917854806,-500.0,0.00019473,2]
[378585313,1754917854816,-500.0,0.00019473,2]
[378585315,1754917854825,-500.0,0.00019473,2]
[378585317,1754917854834,-500.0,0.00019473,2]
[378585319,1754917854843,-158.46577498,0.00019473,2]
[378585321,1754917854852,-500.0,0.00019473,2]
[378585323,1754917854861,-500.0,0.00019473,2]
[378585325,1754917854871,-500.0,0.00019473,2]
[378585327,1754917854880,-160.06312042,0.00019473,2]
[378585329,1754917854890,-500.0,0.00019473,2]
[378585331,1754917854904,-500.15700652,0.00019473,2]
[378585334,1754917854915,-261.45627301,0.00019473,2]
[378585336,1754917854923,-500.0,0.00019473,2]
[378585338,1754917854933,-500.0,0.00019473,2]
[378585340,1754917854944,-158.12880838,0.00019473,2]
[378585342,1754917854953,-160.17133691,0.00019473,2]
[378585344,1754917854962,-160.06638324,0.00019473,2]
[378585346,1754917854972,-158.46419246,0.00019473,2]
[378585348,1754917854982,-340.91787696,0.00019473,2]
[378585350,1754917854991,-158.4649633,0.00019473,2]
[378585352,1754917855000,-181.07257143,0.00019473,2]
[378585354,1754917855010,-500.0,0.00019473,2]
[378585356,1754917855019,-160.06680905,0.00019473,2]
[378585358,1754917855028,-258.42704119,0.00019473,2]
[378585360,1754917855037,-500.0,0.00019473,2]
[378585361,1754917855047,-168.46954688,0.00019473,2]
[378585364,1754917855057,-258.46697977,0.00019473,2]
[378585366,1754917855066,-158.04855828,0.00019473,2]
[378585368,1754917855075,-500.0,0.00019473,2]
[378585370,1754917855084,-500.0,0.00019473,2]
[378585371,1754917855093,-340.52011149,0.00019473,2]
[378585374,1754917855103,-500.0,0.00019473,2]
[378585376,1754917855113,-500.0,0.00019473,2]
[378585377,1754917855122,-500.0,0.00019473,2]
[378585379,1754917855132,-500.0,0.00019473,2]
[378585381,1754917855141,-500.0,0.00019473,2]
[378585383,1754917855150,-500.0,0.00019473,2]
[378585385,1754917855159,-500.0,0.00019473,2]
[378585387,1754917855168,-160.06669641,0.00019473,2]
[378585389,1754917855178,-185.25659566,0.00019473,2]
[378585391,1754917855190,-158.46166641,0.00019473,2]
[378585392,1754917855199,-400.13434124,0.00019473,2]
[378585393,1754917855208,-157.96167722,0.00019473,2]
[378585394,1754917855218,-500.0,0.00019473,2]
[378585395,1754917855228,-500.0,0.00019473,2]
[378585396,1754917855238,-158.44868159,0.00019473,2]
[378585397,1754917855248,-583.93173583,0.00019473,2]
[378585398,1754917855258,-500.0,0.00019473,2]
[378585399,1754917855268,-260.55026,0.00019473,2]
[378585400,1754917855278,-500.0,0.00019473,2]
[378585401,1754917855288,-158.46538666,0.00019473,2]
[378585402,1754917855298,-160.04889471,0.00019473,2]
[378585403,1754917855307,-158.46621791,0.00019473,2]
[378585404,1754917855317,-500.0,0.00019473,2]
[378585405,1754917855327,-521.33546473,0.00019473,2]
[378585406,1754917855337,-621.55254894,0.00019473,2]
[378585407,1754917855348,-500.0,0.00019473,2]
[378585408,1754917855358,-500.0,0.00019473,2]
[378585409,1754917855368,-500.0,0.00019473,2]
[378585410,1754917855380,-216.82734154,0.00019473,2]
[378585411,1754917855391,-500.0,0.00019473,2]
[378585412,1754917855401,-500.0,0.00019473,2]
[378585413,1754917855411,-500.0,0.00019473,2]
[378585414,1754917855421,-500.0,0.00019473,2]
[378585415,1754917855431,-500.0,0.00019473,2]
[378585416,1754917855442,-500.0,0.00019473,2]
[378585417,1754917855453,-500.0,0.00019473,2]
[378585418,1754917855463,-500.0,0.00019473,2]
[378585419,1754917855473,-500.0,0.00019473,2]
[378585420,1754917855482,-445.11431374,0.00019473,2]
[378585421,1754917855493,-500.0,0.00019473,2]
[378585422,1754917855502,-168.72970159,0.00019473,2]
[378585423,1754917855512,-500.0,0.00019473,2]
[378585424,1754917855522,-154.43239774,0.00019473,2]
[378585425,1754917855532,-504.04152628,0.00019473,2]
[378585426,1754917855542,-500.0,0.00019473,2]
[378585427,1754917855552,-525.14433222,0.00019473,2]
[378585428,1754917855562,-500.0,0.00019473,2]
[378585429,1754917855572,-500.78623683,0.00019473,2]
[378585430,1754917855582,-500.0,0.00019473,2]
[378585431,1754917855591,-500.0,0.00019473,2]
[378585432,1754917855601,-500.0,0.00019473,2]
[378585433,1754917855611,-500.0,0.00019473,2]
[378585434,1754917855620,-500.0,0.00019473,2]
[378585435,1754917855630,-173.54530953,0.00019473,2]
[378585436,1754917855639,-500.0,0.00019473,2]
[378585437,1754917855649,-500.0,0.00019473,2]
[378585438,1754917855659,-500.0,0.00019473,2]
[378585439,1754917855668,-500.0,0.00019473,2]
[378585440,1754917855678,-500.0,0.00019473,2]
[378585441,1754917855689,-500.0,0.00019473,2]
[378585442,1754917855699,-500.0,0.00019473,2]
[378585443,1754917855709,-500.0,0.00019473,2]
[378585444,1754917855719,-500.0,0.00019473,2]
[378585445,1754917855730,-500.0,0.00019473,2]
[378585446,1754917855740,-500.0,0.00019473,2]
[378585447,1754917855750,-500.0,0.00019473,2]
[378585448,1754917855759,-500.0,0.00019473,2]
[378585449,1754917855769,-500.0,0.00019473,2]
[378585450,1754917855778,-500.0,0.00019473,2]
[378585451,1754917855788,-500.0,0.00019473,2]
[378585452,1754917855798,-477.08,0.00019496,2]
[378585453,1754917855807,-15020.42211198,0.000195,2]
[378585454,1754917855817,-151.0,0.000195,2]
[378585455,1754917855827,-3846.19653045,0.00019505,2]
[378585456,1754917855836,-6356.06115112,0.00019506,2]
[378585457,1754917855846,-460.0,0.00019515,2]
[378585458,1754917855855,-747.54,0.00019515,2]
[378585459,1754917855865,-12042.51,0.00019515,2]
[378585460,1754917855876,-3645.29,0.00019515,2]
[378585461,1754917855886,-5181.75,0.00019515,2]
[378585462,1754917855900,-588.87453763,0.00019536,2]
[378585463,1754917855909,-460.0,0.00019536,2]
[378585464,1754917855919,-460.0,0.00019536,2]
[378585465,1754917855929,-460.0,0.00019536,2]
[378585466,1754917855939,-627.4,0.00019536,2]
[378585467,1754917855949,-2728.78,0.00019536,2]
[378585468,1754917855959,-2318.6,0.00019536,2]
[378585469,1754917855969,-2213.03,0.00019536,2]
[378585470,1754917855980,-151.0,0.00019536,2]
[378585471,1754917855990,-460.0,0.00019536,2]
[378585472,1754917856000,-972.58,0.00019536,2]
[378585473,1754917856010,-151.0,0.00019536,2]
[378585474,1754917856020,-460.0,0.00019536,2]
[378585475,1754917856030,-3689.28,0.00019536,2]
[378585476,1754917856040,-460.0,0.00019536,2]
[378585477,1754917856050,-460.0,0.00019536,2]
[378585478,1754917856060,-460.0,0.00019536,2]
[378585479,1754917856070,-460.0,0.00019537,2]
[378585480,1754917856079,-460.0,0.00019537,2]
[378585481,1754917856089,-468.36191498,0.00019537,2]
[378585482,1754917856099,-460.0,0.00019537,2]
[378585484,1754917856109,-562.05,0.00019537,2]
[378585486,1754917856118,-3899.48,0.00019537,2]
[378585488,1754917856129,-460.0,0.00019537,2]
[378585490,1754917856139,-151.0,0.000196,2]
[378585491,1754917856149,-151.0,0.000196,2]
[378585492,1754917856159,-151.0,0.000196,2]
[378585493,1754917856169,-800.0,0.00019635,2]
[378585494,1754917856179,-151.0,0.000197,2]
[378585495,1754917856190,-151.0,0.000197,2]
[378585496,1754917856200,-151.0,0.000197,2]
[378585497,1754917856210,-151.0,0.00019709,2]
[378585498,1754917856219,-151.0,0.00019709,2]
[378585499,1754917856234,-151.0,0.00019709,2]